{"text_format":"3","workbook":"xlsx","n_sheets":2,"sheets":["Tablica za gubitak kilograma","Izračuni"],"not_rendered":{"charts":1,"defined_names":10},"read":"whole","date_system":"1900"}

{"sheet":"Tablica za gubitak kilograma","index":0,"n_rows":19,"n_cols":9,"rows_kept":19,"merged":[[0,3,0,7],[0,8,0,9],[1,3,2,9]]}
[null,"CILJNA TEŽINA","PRIKAZ GRAFIKONA","Ime i prezime",{"$nulls":4},"GUBITAK KILOGRAMA"]
[{"$nulls":3},"TABLICA ZA PRAĆENJE"]
[null,{"v":172,"d":"172.0"},"TJEDNO"]
[null,"PRIKAZ CILJNE TEŽINE","Da"]
[null,"U ovoj se ćeliji nalazi Grafikon za praćenje tjelesne mase koji prati trenutačnu težinu. U ćeliji C4 odaberite „Da” da bi vam se redak Ciljna težina prikazao iznad područja grafikona."]
[]
[null,"DATUM","TEŽINA"]
[null,{"$f":"TODAY()-77","v":"2022-01-12"},{"v":176,"d":"176.0"}]
[null,{"$f":"TODAY()-70","v":"2022-01-19"},{"v":176,"d":"176.0"}]
[null,{"$f":"TODAY()-63","v":"2022-01-26"},177.6]
[null,{"$f":"TODAY()-56","v":"2022-02-02"},176.5]
[null,{"$f":"TODAY()-49","v":"2022-02-09"},176.1]
[null,{"$f":"TODAY()-42","v":"2022-02-16"},{"v":174,"d":"174.0"}]
[null,{"$f":"TODAY()-35","v":"2022-02-23"},173.5]
[null,{"$f":"TODAY()-28","v":"2022-03-02"},{"v":173,"d":"173.0"}]
[null,{"$f":"TODAY()-21","v":"2022-03-09"},{"v":172,"d":"172.0"}]
[null,{"$f":"TODAY()-14","v":"2022-03-16"},{"v":172,"d":"172.0"}]
[null,{"$f":"TODAY()-7","v":"2022-03-23"},{"v":173,"d":"173.0"}]
[null,{"$f":"TODAY()","v":"2022-03-30"},{"v":172,"d":"172.0"}]

{"sheet":"Izračuni","index":1,"n_rows":107,"n_cols":17,"rows_kept":107,"hidden":true}
["*** Ovaj list mora ostati sakriven ***"]
[]
[{"$f":"COUNTIF(A5:A107,FALSE)","v":12},"Razdoblja","Vrijednosti",{"$nulls":3},{"$f":"COUNTIF(H5:H28,\">\"&0)","v":3},"Razdoblja",null,"Vrijednosti"]
[null,"Tjedan",null,null,{"$f":"IFERROR(IF(PrikazCiljneTežine=\"Da\", TRUE, FALSE),FALSE)","v":true},null,null,"Mjesec","Kraj mjeseca"]
[{"$f":"FALSE","v":false},{"$f":"IFERROR(IF(LEN('Tablica za gubitak kilograma'!$B8)=0,TODAY(),'Tablica za gubitak kilograma'!$B8),TODAY())","v":"2022-01-12"},{"$f":"IFERROR(IF(LEN('Tablica za gubitak kilograma'!$C8)=0,CiljnaTežina,'Tablica za gubitak kilograma'!$C8),0)","v":176},{"$f":"IFERROR(IF(MIN(RazdobljaGrafikona)=0,TODAY(),MIN(RazdobljaGrafikona)),TODAY())","v":"2022-01-12"},{"$f":"IFERROR(IF($A$5,0,IF($E$4,CiljnaTežina,NA())),0)","v":172},null,null,{"$f":"IFERROR(IF($A$5,TODAY(),DATE(YEAR($B5),MONTH($B5),1)),\"\")","v":"2022-01-01"},{"$f":"IFERROR(IF($A$5,TODAY(),EOMONTH($H5,0)),\"\")","v":"2022-01-31"},{"$f":"IFERROR(IF($A$5,0,AVERAGEIFS(Težina[TEŽINA],Težina[DATUM],\">=\"&$H5,Težina[DATUM],\"<=\"&$I5)),NA())","v":176.53333333333333}]
[{"$f":"IF((LEN('Tablica za gubitak kilograma'!$C9)=0),TRUE)","v":false},{"$f":"IFERROR(IF(A6,0,IF(LEN('Tablica za gubitak kilograma'!$B9)=0,0,'Tablica za gubitak kilograma'!$B9)),\"\")","v":"2022-01-19"},{"$f":"IFERROR(IF(A6,0,IF(LEN('Tablica za gubitak kilograma'!$C9)=0,0,'Tablica za gubitak kilograma'!$C9)),\"\")","v":176},{"$f":"IFERROR(IF(MAX(RazdobljaGrafikona)=0,TODAY(),MAX(RazdobljaGrafikona)),TODAY())","v":"2022-03-30"},{"$f":"IFERROR(IF($A$5,0,IF($E$4,CiljnaTežina,NA())),0)","v":172},null,null,{"$f":"IF($I5+1>MAX($B:$B),NA(),$I5+1)","v":"2022-02-01"},{"$f":"EOMONTH($H6,0)","v":"2022-02-28"},{"$f":"IFERROR(AVERAGEIFS(Težina[TEŽINA],Težina[DATUM],\">=\"&$H6,Težina[DATUM],\"<=\"&$I6),NA())","v":175.025}]
[{"$f":"IF((LEN('Tablica za gubitak kilograma'!$C10)=0),TRUE)","v":false},{"$f":"IFERROR(IF(A7,0,IF(LEN('Tablica za gubitak kilograma'!$B10)=0,0,'Tablica za gubitak kilograma'!$B10)),\"\")","v":"2022-01-26"},{"$f":"IFERROR(IF(A7,0,IF(LEN('Tablica za gubitak kilograma'!$C10)=0,0,'Tablica za gubitak kilograma'!$C10)),\"\")","v":177.6},{"$nulls":4},"2022-03-01","2022-03-31",{"$f":"IFERROR(AVERAGEIFS(Težina[TEŽINA],Težina[DATUM],\">=\"&$H7,Težina[DATUM],\"<=\"&$I7),NA())","v":172.4}]
[{"$f":"IF((LEN('Tablica za gubitak kilograma'!$C11)=0),TRUE)","v":false},{"$f":"IFERROR(IF(A8,0,IF(LEN('Tablica za gubitak kilograma'!$B11)=0,0,'Tablica za gubitak kilograma'!$B11)),\"\")","v":"2022-02-02"},{"$f":"IFERROR(IF(A8,0,IF(LEN('Tablica za gubitak kilograma'!$C11)=0,0,'Tablica za gubitak kilograma'!$C11)),\"\")","v":176.5},{"$nulls":4},{"$error":"#N/A"},{"$error":"#N/A"},{"$f":"IFERROR(AVERAGEIFS(Težina[TEŽINA],Težina[DATUM],\">=\"&$H8,Težina[DATUM],\"<=\"&$I8),NA())","v":{"$error":"#N/A"}}]
[{"$f":"IF((LEN('Tablica za gubitak kilograma'!$C12)=0),TRUE)","v":false},{"$f":"IFERROR(IF(A9,0,IF(LEN('Tablica za gubitak kilograma'!$B12)=0,0,'Tablica za gubitak kilograma'!$B12)),\"\")","v":"2022-02-09"},{"$f":"IFERROR(IF(A9,0,IF(LEN('Tablica za gubitak kilograma'!$C12)=0,0,'Tablica za gubitak kilograma'!$C12)),\"\")","v":176.1},{"$nulls":4},{"$error":"#N/A"},{"$error":"#N/A"},{"$f":"IFERROR(AVERAGEIFS(Težina[TEŽINA],Težina[DATUM],\">=\"&$H9,Težina[DATUM],\"<=\"&$I9),NA())","v":{"$error":"#N/A"}}]
[{"$f":"IF((LEN('Tablica za gubitak kilograma'!$C13)=0),TRUE)","v":false},{"$f":"IFERROR(IF(A10,0,IF(LEN('Tablica za gubitak kilograma'!$B13)=0,0,'Tablica za gubitak kilograma'!$B13)),\"\")","v":"2022-02-16"},{"$f":"IFERROR(IF(A10,0,IF(LEN('Tablica za gubitak kilograma'!$C13)=0,0,'Tablica za gubitak kilograma'!$C13)),\"\")","v":174},{"$nulls":4},{"$error":"#N/A"},{"$error":"#N/A"},{"$f":"IFERROR(AVERAGEIFS(Težina[TEŽINA],Težina[DATUM],\">=\"&$H10,Težina[DATUM],\"<=\"&$I10),NA())","v":{"$error":"#N/A"}}]
[{"$f":"IF((LEN('Tablica za gubitak kilograma'!$C14)=0),TRUE)","v":false},{"$f":"IFERROR(IF(A11,0,IF(LEN('Tablica za gubitak kilograma'!$B14)=0,0,'Tablica za gubitak kilograma'!$B14)),\"\")","v":"2022-02-23"},{"$f":"IFERROR(IF(A11,0,IF(LEN('Tablica za gubitak kilograma'!$C14)=0,0,'Tablica za gubitak kilograma'!$C14)),\"\")","v":173.5},{"$nulls":4},{"$error":"#N/A"},{"$error":"#N/A"},{"$f":"IFERROR(AVERAGEIFS(Težina[TEŽINA],Težina[DATUM],\">=\"&$H11,Težina[DATUM],\"<=\"&$I11),NA())","v":{"$error":"#N/A"}},{"$nulls":6},{"$f":"MAX($B:$B)","v":"2022-03-30"}]
[{"$f":"IF((LEN('Tablica za gubitak kilograma'!$C15)=0),TRUE)","v":false},{"$f":"IFERROR(IF(A12,0,IF(LEN('Tablica za gubitak kilograma'!$B15)=0,0,'Tablica za gubitak kilograma'!$B15)),\"\")","v":"2022-03-02"},{"$f":"IFERROR(IF(A12,0,IF(LEN('Tablica za gubitak kilograma'!$C15)=0,0,'Tablica za gubitak kilograma'!$C15)),\"\")","v":173},{"$nulls":4},{"$error":"#N/A"},{"$error":"#N/A"},{"$f":"IFERROR(AVERAGEIFS(Težina[TEŽINA],Težina[DATUM],\">=\"&$H12,Težina[DATUM],\"<=\"&$I12),NA())","v":{"$error":"#N/A"}}]
[{"$f":"IF((LEN('Tablica za gubitak kilograma'!$C16)=0),TRUE)","v":false},{"$f":"IFERROR(IF(A13,0,IF(LEN('Tablica za gubitak kilograma'!$B16)=0,0,'Tablica za gubitak kilograma'!$B16)),\"\")","v":"2022-03-09"},{"$f":"IFERROR(IF(A13,0,IF(LEN('Tablica za gubitak kilograma'!$C16)=0,0,'Tablica za gubitak kilograma'!$C16)),\"\")","v":172},{"$nulls":4},{"$error":"#N/A"},{"$error":"#N/A"},{"$f":"IFERROR(AVERAGEIFS(Težina[TEŽINA],Težina[DATUM],\">=\"&$H13,Težina[DATUM],\"<=\"&$I13),NA())","v":{"$error":"#N/A"}}]
[{"$f":"IF((LEN('Tablica za gubitak kilograma'!$C17)=0),TRUE)","v":false},{"$f":"IFERROR(IF(A14,0,IF(LEN('Tablica za gubitak kilograma'!$B17)=0,0,'Tablica za gubitak kilograma'!$B17)),\"\")","v":"2022-03-16"},{"$f":"IFERROR(IF(A14,0,IF(LEN('Tablica za gubitak kilograma'!$C17)=0,0,'Tablica za gubitak kilograma'!$C17)),\"\")","v":172},{"$nulls":4},{"$error":"#N/A"},{"$error":"#N/A"},{"$f":"IFERROR(AVERAGEIFS(Težina[TEŽINA],Težina[DATUM],\">=\"&$H14,Težina[DATUM],\"<=\"&$I14),NA())","v":{"$error":"#N/A"}}]
[{"$f":"IF((LEN('Tablica za gubitak kilograma'!$C18)=0),TRUE)","v":false},{"$f":"IFERROR(IF(A15,0,IF(LEN('Tablica za gubitak kilograma'!$B18)=0,0,'Tablica za gubitak kilograma'!$B18)),\"\")","v":"2022-03-23"},{"$f":"IFERROR(IF(A15,0,IF(LEN('Tablica za gubitak kilograma'!$C18)=0,0,'Tablica za gubitak kilograma'!$C18)),\"\")","v":173},{"$nulls":4},{"$error":"#N/A"},{"$error":"#N/A"},{"$f":"IFERROR(AVERAGEIFS(Težina[TEŽINA],Težina[DATUM],\">=\"&$H15,Težina[DATUM],\"<=\"&$I15),NA())","v":{"$error":"#N/A"}}]
[{"$f":"IF((LEN('Tablica za gubitak kilograma'!$C19)=0),TRUE)","v":false},{"$f":"IFERROR(IF(A16,0,IF(LEN('Tablica za gubitak kilograma'!$B19)=0,0,'Tablica za gubitak kilograma'!$B19)),\"\")","v":"2022-03-30"},{"$f":"IFERROR(IF(A16,0,IF(LEN('Tablica za gubitak kilograma'!$C19)=0,0,'Tablica za gubitak kilograma'!$C19)),\"\")","v":172},{"$nulls":4},{"$error":"#N/A"},{"$error":"#N/A"},{"$f":"IFERROR(AVERAGEIFS(Težina[TEŽINA],Težina[DATUM],\">=\"&$H16,Težina[DATUM],\"<=\"&$I16),NA())","v":{"$error":"#N/A"}}]
[{"$f":"IF((LEN('Tablica za gubitak kilograma'!$C20)=0),TRUE)","v":true},{"$f":"IFERROR(IF(A17,0,IF(LEN('Tablica za gubitak kilograma'!$B20)=0,0,'Tablica za gubitak kilograma'!$B20)),\"\")","v":"00:00:00"},{"$f":"IFERROR(IF(A17,0,IF(LEN('Tablica za gubitak kilograma'!$C20)=0,0,'Tablica za gubitak kilograma'!$C20)),\"\")","v":0},{"$nulls":4},{"$error":"#N/A"},{"$error":"#N/A"},{"$f":"IFERROR(AVERAGEIFS(Težina[TEŽINA],Težina[DATUM],\">=\"&$H17,Težina[DATUM],\"<=\"&$I17),NA())","v":{"$error":"#N/A"}}]
[{"$f":"IF((LEN('Tablica za gubitak kilograma'!$C21)=0),TRUE)","v":true},{"$f":"IFERROR(IF(A18,0,IF(LEN('Tablica za gubitak kilograma'!$B21)=0,0,'Tablica za gubitak kilograma'!$B21)),\"\")","v":"00:00:00"},{"$f":"IFERROR(IF(A18,0,IF(LEN('Tablica za gubitak kilograma'!$C21)=0,0,'Tablica za gubitak kilograma'!$C21)),\"\")","v":0},{"$nulls":4},{"$error":"#N/A"},{"$error":"#N/A"},{"$f":"IFERROR(AVERAGEIFS(Težina[TEŽINA],Težina[DATUM],\">=\"&$H18,Težina[DATUM],\"<=\"&$I18),NA())","v":{"$error":"#N/A"}}]
[{"$f":"IF((LEN('Tablica za gubitak kilograma'!$C22)=0),TRUE)","v":true},{"$f":"IFERROR(IF(A19,0,IF(LEN('Tablica za gubitak kilograma'!$B22)=0,0,'Tablica za gubitak kilograma'!$B22)),\"\")","v":"00:00:00"},{"$f":"IFERROR(IF(A19,0,IF(LEN('Tablica za gubitak kilograma'!$C22)=0,0,'Tablica za gubitak kilograma'!$C22)),\"\")","v":0},{"$nulls":4},{"$error":"#N/A"},{"$error":"#N/A"},{"$f":"IFERROR(AVERAGEIFS(Težina[TEŽINA],Težina[DATUM],\">=\"&$H19,Težina[DATUM],\"<=\"&$I19),NA())","v":{"$error":"#N/A"}}]
[{"$f":"IF((LEN('Tablica za gubitak kilograma'!$C23)=0),TRUE)","v":true},{"$f":"IFERROR(IF(A20,0,IF(LEN('Tablica za gubitak kilograma'!$B23)=0,0,'Tablica za gubitak kilograma'!$B23)),\"\")","v":"00:00:00"},{"$f":"IFERROR(IF(A20,0,IF(LEN('Tablica za gubitak kilograma'!$C23)=0,0,'Tablica za gubitak kilograma'!$C23)),\"\")","v":0},{"$nulls":4},{"$error":"#N/A"},{"$error":"#N/A"},{"$f":"IFERROR(AVERAGEIFS(Težina[TEŽINA],Težina[DATUM],\">=\"&$H20,Težina[DATUM],\"<=\"&$I20),NA())","v":{"$error":"#N/A"}}]
[{"$f":"IF((LEN('Tablica za gubitak kilograma'!$C24)=0),TRUE)","v":true},{"$f":"IFERROR(IF(A21,0,IF(LEN('Tablica za gubitak kilograma'!$B24)=0,0,'Tablica za gubitak kilograma'!$B24)),\"\")","v":"00:00:00"},{"$f":"IFERROR(IF(A21,0,IF(LEN('Tablica za gubitak kilograma'!$C24)=0,0,'Tablica za gubitak kilograma'!$C24)),\"\")","v":0},{"$nulls":4},{"$error":"#N/A"},{"$error":"#N/A"},{"$f":"IFERROR(AVERAGEIFS(Težina[TEŽINA],Težina[DATUM],\">=\"&$H21,Težina[DATUM],\"<=\"&$I21),NA())","v":{"$error":"#N/A"}}]
[{"$f":"IF((LEN('Tablica za gubitak kilograma'!$C25)=0),TRUE)","v":true},{"$f":"IFERROR(IF(A22,0,IF(LEN('Tablica za gubitak kilograma'!$B25)=0,0,'Tablica za gubitak kilograma'!$B25)),\"\")","v":"00:00:00"},{"$f":"IFERROR(IF(A22,0,IF(LEN('Tablica za gubitak kilograma'!$C25)=0,0,'Tablica za gubitak kilograma'!$C25)),\"\")","v":0},{"$nulls":4},{"$error":"#N/A"},{"$error":"#N/A"},{"$f":"IFERROR(AVERAGEIFS(Težina[TEŽINA],Težina[DATUM],\">=\"&$H22,Težina[DATUM],\"<=\"&$I22),NA())","v":{"$error":"#N/A"}}]
[{"$f":"IF((LEN('Tablica za gubitak kilograma'!$C26)=0),TRUE)","v":true},{"$f":"IFERROR(IF(A23,0,IF(LEN('Tablica za gubitak kilograma'!$B26)=0,0,'Tablica za gubitak kilograma'!$B26)),\"\")","v":"00:00:00"},{"$f":"IFERROR(IF(A23,0,IF(LEN('Tablica za gubitak kilograma'!$C26)=0,0,'Tablica za gubitak kilograma'!$C26)),\"\")","v":0},{"$nulls":4},{"$error":"#N/A"},{"$error":"#N/A"},{"$f":"IFERROR(AVERAGEIFS(Težina[TEŽINA],Težina[DATUM],\">=\"&$H23,Težina[DATUM],\"<=\"&$I23),NA())","v":{"$error":"#N/A"}}]
[{"$f":"IF((LEN('Tablica za gubitak kilograma'!$C27)=0),TRUE)","v":true},{"$f":"IFERROR(IF(A24,0,IF(LEN('Tablica za gubitak kilograma'!$B27)=0,0,'Tablica za gubitak kilograma'!$B27)),\"\")","v":"00:00:00"},{"$f":"IFERROR(IF(A24,0,IF(LEN('Tablica za gubitak kilograma'!$C27)=0,0,'Tablica za gubitak kilograma'!$C27)),\"\")","v":0},{"$nulls":4},{"$error":"#N/A"},{"$error":"#N/A"},{"$f":"IFERROR(AVERAGEIFS(Težina[TEŽINA],Težina[DATUM],\">=\"&$H24,Težina[DATUM],\"<=\"&$I24),NA())","v":{"$error":"#N/A"}}]
[{"$f":"IF((LEN('Tablica za gubitak kilograma'!$C28)=0),TRUE)","v":true},{"$f":"IFERROR(IF(A25,0,IF(LEN('Tablica za gubitak kilograma'!$B28)=0,0,'Tablica za gubitak kilograma'!$B28)),\"\")","v":"00:00:00"},{"$f":"IFERROR(IF(A25,0,IF(LEN('Tablica za gubitak kilograma'!$C28)=0,0,'Tablica za gubitak kilograma'!$C28)),\"\")","v":0},{"$nulls":4},{"$error":"#N/A"},{"$error":"#N/A"},{"$f":"IFERROR(AVERAGEIFS(Težina[TEŽINA],Težina[DATUM],\">=\"&$H25,Težina[DATUM],\"<=\"&$I25),NA())","v":{"$error":"#N/A"}}]
[{"$f":"IF((LEN('Tablica za gubitak kilograma'!$C29)=0),TRUE)","v":true},{"$f":"IFERROR(IF(A26,0,IF(LEN('Tablica za gubitak kilograma'!$B29)=0,0,'Tablica za gubitak kilograma'!$B29)),\"\")","v":"00:00:00"},{"$f":"IFERROR(IF(A26,0,IF(LEN('Tablica za gubitak kilograma'!$C29)=0,0,'Tablica za gubitak kilograma'!$C29)),\"\")","v":0},{"$nulls":4},{"$error":"#N/A"},{"$error":"#N/A"},{"$f":"IFERROR(AVERAGEIFS(Težina[TEŽINA],Težina[DATUM],\">=\"&$H26,Težina[DATUM],\"<=\"&$I26),NA())","v":{"$error":"#N/A"}}]
[{"$f":"IF((LEN('Tablica za gubitak kilograma'!$C30)=0),TRUE)","v":true},{"$f":"IFERROR(IF(A27,0,IF(LEN('Tablica za gubitak kilograma'!$B30)=0,0,'Tablica za gubitak kilograma'!$B30)),\"\")","v":"00:00:00"},{"$f":"IFERROR(IF(A27,0,IF(LEN('Tablica za gubitak kilograma'!$C30)=0,0,'Tablica za gubitak kilograma'!$C30)),\"\")","v":0},{"$nulls":4},{"$error":"#N/A"},{"$error":"#N/A"},{"$f":"IFERROR(AVERAGEIFS(Težina[TEŽINA],Težina[DATUM],\">=\"&$H27,Težina[DATUM],\"<=\"&$I27),NA())","v":{"$error":"#N/A"}}]
[{"$f":"IF((LEN('Tablica za gubitak kilograma'!$C31)=0),TRUE)","v":true},{"$f":"IFERROR(IF(A28,0,IF(LEN('Tablica za gubitak kilograma'!$B31)=0,0,'Tablica za gubitak kilograma'!$B31)),\"\")","v":"00:00:00"},{"$f":"IFERROR(IF(A28,0,IF(LEN('Tablica za gubitak kilograma'!$C31)=0,0,'Tablica za gubitak kilograma'!$C31)),\"\")","v":0},{"$nulls":4},{"$error":"#N/A"},{"$error":"#N/A"},{"$f":"IFERROR(AVERAGEIFS(Težina[TEŽINA],Težina[DATUM],\">=\"&$H28,Težina[DATUM],\"<=\"&$I28),NA())","v":{"$error":"#N/A"}}]
[{"$f":"IF((LEN('Tablica za gubitak kilograma'!$C32)=0),TRUE)","v":true},{"$f":"IFERROR(IF(A29,0,IF(LEN('Tablica za gubitak kilograma'!$B32)=0,0,'Tablica za gubitak kilograma'!$B32)),\"\")","v":"00:00:00"},{"$f":"IFERROR(IF(A29,0,IF(LEN('Tablica za gubitak kilograma'!$C32)=0,0,'Tablica za gubitak kilograma'!$C32)),\"\")","v":0}]
[{"$f":"IF((LEN('Tablica za gubitak kilograma'!$C33)=0),TRUE)","v":true},{"$f":"IFERROR(IF(A30,0,IF(LEN('Tablica za gubitak kilograma'!$B33)=0,0,'Tablica za gubitak kilograma'!$B33)),\"\")","v":"00:00:00"},{"$f":"IFERROR(IF(A30,0,IF(LEN('Tablica za gubitak kilograma'!$C33)=0,0,'Tablica za gubitak kilograma'!$C33)),\"\")","v":0}]
[{"$f":"IF((LEN('Tablica za gubitak kilograma'!$C34)=0),TRUE)","v":true},{"$f":"IFERROR(IF(A31,0,IF(LEN('Tablica za gubitak kilograma'!$B34)=0,0,'Tablica za gubitak kilograma'!$B34)),\"\")","v":"00:00:00"},{"$f":"IFERROR(IF(A31,0,IF(LEN('Tablica za gubitak kilograma'!$C34)=0,0,'Tablica za gubitak kilograma'!$C34)),\"\")","v":0}]
[{"$f":"IF((LEN('Tablica za gubitak kilograma'!$C35)=0),TRUE)","v":true},{"$f":"IFERROR(IF(A32,0,IF(LEN('Tablica za gubitak kilograma'!$B35)=0,0,'Tablica za gubitak kilograma'!$B35)),\"\")","v":"00:00:00"},{"$f":"IFERROR(IF(A32,0,IF(LEN('Tablica za gubitak kilograma'!$C35)=0,0,'Tablica za gubitak kilograma'!$C35)),\"\")","v":0}]
[{"$f":"IF((LEN('Tablica za gubitak kilograma'!$C36)=0),TRUE)","v":true},{"$f":"IFERROR(IF(A33,0,IF(LEN('Tablica za gubitak kilograma'!$B36)=0,0,'Tablica za gubitak kilograma'!$B36)),\"\")","v":"00:00:00"},{"$f":"IFERROR(IF(A33,0,IF(LEN('Tablica za gubitak kilograma'!$C36)=0,0,'Tablica za gubitak kilograma'!$C36)),\"\")","v":0}]
[{"$f":"IF((LEN('Tablica za gubitak kilograma'!$C37)=0),TRUE)","v":true},{"$f":"IFERROR(IF(A34,0,IF(LEN('Tablica za gubitak kilograma'!$B37)=0,0,'Tablica za gubitak kilograma'!$B37)),\"\")","v":"00:00:00"},{"$f":"IFERROR(IF(A34,0,IF(LEN('Tablica za gubitak kilograma'!$C37)=0,0,'Tablica za gubitak kilograma'!$C37)),\"\")","v":0}]
[{"$f":"IF((LEN('Tablica za gubitak kilograma'!$C38)=0),TRUE)","v":true},{"$f":"IFERROR(IF(A35,0,IF(LEN('Tablica za gubitak kilograma'!$B38)=0,0,'Tablica za gubitak kilograma'!$B38)),\"\")","v":"00:00:00"},{"$f":"IFERROR(IF(A35,0,IF(LEN('Tablica za gubitak kilograma'!$C38)=0,0,'Tablica za gubitak kilograma'!$C38)),\"\")","v":0}]
[{"$f":"IF((LEN('Tablica za gubitak kilograma'!$C39)=0),TRUE)","v":true},{"$f":"IFERROR(IF(A36,0,IF(LEN('Tablica za gubitak kilograma'!$B39)=0,0,'Tablica za gubitak kilograma'!$B39)),\"\")","v":"00:00:00"},{"$f":"IFERROR(IF(A36,0,IF(LEN('Tablica za gubitak kilograma'!$C39)=0,0,'Tablica za gubitak kilograma'!$C39)),\"\")","v":0}]
[{"$f":"IF((LEN('Tablica za gubitak kilograma'!$C40)=0),TRUE)","v":true},{"$f":"IFERROR(IF(A37,0,IF(LEN('Tablica za gubitak kilograma'!$B40)=0,0,'Tablica za gubitak kilograma'!$B40)),\"\")","v":"00:00:00"},{"$f":"IFERROR(IF(A37,0,IF(LEN('Tablica za gubitak kilograma'!$C40)=0,0,'Tablica za gubitak kilograma'!$C40)),\"\")","v":0}]
[{"$f":"IF((LEN('Tablica za gubitak kilograma'!$C41)=0),TRUE)","v":true},{"$f":"IFERROR(IF(A38,0,IF(LEN('Tablica za gubitak kilograma'!$B41)=0,0,'Tablica za gubitak kilograma'!$B41)),\"\")","v":"00:00:00"},{"$f":"IFERROR(IF(A38,0,IF(LEN('Tablica za gubitak kilograma'!$C41)=0,0,'Tablica za gubitak kilograma'!$C41)),\"\")","v":0}]
[{"$f":"IF((LEN('Tablica za gubitak kilograma'!$C42)=0),TRUE)","v":true},{"$f":"IFERROR(IF(A39,0,IF(LEN('Tablica za gubitak kilograma'!$B42)=0,0,'Tablica za gubitak kilograma'!$B42)),\"\")","v":"00:00:00"},{"$f":"IFERROR(IF(A39,0,IF(LEN('Tablica za gubitak kilograma'!$C42)=0,0,'Tablica za gubitak kilograma'!$C42)),\"\")","v":0}]
[{"$f":"IF((LEN('Tablica za gubitak kilograma'!$C43)=0),TRUE)","v":true},{"$f":"IFERROR(IF(A40,0,IF(LEN('Tablica za gubitak kilograma'!$B43)=0,0,'Tablica za gubitak kilograma'!$B43)),\"\")","v":"00:00:00"},{"$f":"IFERROR(IF(A40,0,IF(LEN('Tablica za gubitak kilograma'!$C43)=0,0,'Tablica za gubitak kilograma'!$C43)),\"\")","v":0}]
[{"$f":"IF((LEN('Tablica za gubitak kilograma'!$C44)=0),TRUE)","v":true},{"$f":"IFERROR(IF(A41,0,IF(LEN('Tablica za gubitak kilograma'!$B44)=0,0,'Tablica za gubitak kilograma'!$B44)),\"\")","v":"00:00:00"},{"$f":"IFERROR(IF(A41,0,IF(LEN('Tablica za gubitak kilograma'!$C44)=0,0,'Tablica za gubitak kilograma'!$C44)),\"\")","v":0}]
[{"$f":"IF((LEN('Tablica za gubitak kilograma'!$C45)=0),TRUE)","v":true},{"$f":"IFERROR(IF(A42,0,IF(LEN('Tablica za gubitak kilograma'!$B45)=0,0,'Tablica za gubitak kilograma'!$B45)),\"\")","v":"00:00:00"},{"$f":"IFERROR(IF(A42,0,IF(LEN('Tablica za gubitak kilograma'!$C45)=0,0,'Tablica za gubitak kilograma'!$C45)),\"\")","v":0}]
[{"$f":"IF((LEN('Tablica za gubitak kilograma'!$C46)=0),TRUE)","v":true},{"$f":"IFERROR(IF(A43,0,IF(LEN('Tablica za gubitak kilograma'!$B46)=0,0,'Tablica za gubitak kilograma'!$B46)),\"\")","v":"00:00:00"},{"$f":"IFERROR(IF(A43,0,IF(LEN('Tablica za gubitak kilograma'!$C46)=0,0,'Tablica za gubitak kilograma'!$C46)),\"\")","v":0}]
[{"$f":"IF((LEN('Tablica za gubitak kilograma'!$C47)=0),TRUE)","v":true},{"$f":"IFERROR(IF(A44,0,IF(LEN('Tablica za gubitak kilograma'!$B47)=0,0,'Tablica za gubitak kilograma'!$B47)),\"\")","v":"00:00:00"},{"$f":"IFERROR(IF(A44,0,IF(LEN('Tablica za gubitak kilograma'!$C47)=0,0,'Tablica za gubitak kilograma'!$C47)),\"\")","v":0}]
[{"$f":"IF((LEN('Tablica za gubitak kilograma'!$C48)=0),TRUE)","v":true},{"$f":"IFERROR(IF(A45,0,IF(LEN('Tablica za gubitak kilograma'!$B48)=0,0,'Tablica za gubitak kilograma'!$B48)),\"\")","v":"00:00:00"},{"$f":"IFERROR(IF(A45,0,IF(LEN('Tablica za gubitak kilograma'!$C48)=0,0,'Tablica za gubitak kilograma'!$C48)),\"\")","v":0}]
[{"$f":"IF((LEN('Tablica za gubitak kilograma'!$C49)=0),TRUE)","v":true},{"$f":"IFERROR(IF(A46,0,IF(LEN('Tablica za gubitak kilograma'!$B49)=0,0,'Tablica za gubitak kilograma'!$B49)),\"\")","v":"00:00:00"},{"$f":"IFERROR(IF(A46,0,IF(LEN('Tablica za gubitak kilograma'!$C49)=0,0,'Tablica za gubitak kilograma'!$C49)),\"\")","v":0}]
[{"$f":"IF((LEN('Tablica za gubitak kilograma'!$C50)=0),TRUE)","v":true},{"$f":"IFERROR(IF(A47,0,IF(LEN('Tablica za gubitak kilograma'!$B50)=0,0,'Tablica za gubitak kilograma'!$B50)),\"\")","v":"00:00:00"},{"$f":"IFERROR(IF(A47,0,IF(LEN('Tablica za gubitak kilograma'!$C50)=0,0,'Tablica za gubitak kilograma'!$C50)),\"\")","v":0}]
[{"$f":"IF((LEN('Tablica za gubitak kilograma'!$C51)=0),TRUE)","v":true},{"$f":"IFERROR(IF(A48,0,IF(LEN('Tablica za gubitak kilograma'!$B51)=0,0,'Tablica za gubitak kilograma'!$B51)),\"\")","v":"00:00:00"},{"$f":"IFERROR(IF(A48,0,IF(LEN('Tablica za gubitak kilograma'!$C51)=0,0,'Tablica za gubitak kilograma'!$C51)),\"\")","v":0}]
[{"$f":"IF((LEN('Tablica za gubitak kilograma'!$C52)=0),TRUE)","v":true},{"$f":"IFERROR(IF(A49,0,IF(LEN('Tablica za gubitak kilograma'!$B52)=0,0,'Tablica za gubitak kilograma'!$B52)),\"\")","v":"00:00:00"},{"$f":"IFERROR(IF(A49,0,IF(LEN('Tablica za gubitak kilograma'!$C52)=0,0,'Tablica za gubitak kilograma'!$C52)),\"\")","v":0}]
[{"$f":"IF((LEN('Tablica za gubitak kilograma'!$C53)=0),TRUE)","v":true},{"$f":"IFERROR(IF(A50,0,IF(LEN('Tablica za gubitak kilograma'!$B53)=0,0,'Tablica za gubitak kilograma'!$B53)),\"\")","v":"00:00:00"},{"$f":"IFERROR(IF(A50,0,IF(LEN('Tablica za gubitak kilograma'!$C53)=0,0,'Tablica za gubitak kilograma'!$C53)),\"\")","v":0}]
[{"$f":"IF((LEN('Tablica za gubitak kilograma'!$C54)=0),TRUE)","v":true},{"$f":"IFERROR(IF(A51,0,IF(LEN('Tablica za gubitak kilograma'!$B54)=0,0,'Tablica za gubitak kilograma'!$B54)),\"\")","v":"00:00:00"},{"$f":"IFERROR(IF(A51,0,IF(LEN('Tablica za gubitak kilograma'!$C54)=0,0,'Tablica za gubitak kilograma'!$C54)),\"\")","v":0}]
[{"$f":"IF((LEN('Tablica za gubitak kilograma'!$C55)=0),TRUE)","v":true},{"$f":"IFERROR(IF(A52,0,IF(LEN('Tablica za gubitak kilograma'!$B55)=0,0,'Tablica za gubitak kilograma'!$B55)),\"\")","v":"00:00:00"},{"$f":"IFERROR(IF(A52,0,IF(LEN('Tablica za gubitak kilograma'!$C55)=0,0,'Tablica za gubitak kilograma'!$C55)),\"\")","v":0}]
[{"$f":"IF((LEN('Tablica za gubitak kilograma'!$C56)=0),TRUE)","v":true},{"$f":"IFERROR(IF(A53,0,IF(LEN('Tablica za gubitak kilograma'!$B56)=0,0,'Tablica za gubitak kilograma'!$B56)),\"\")","v":"00:00:00"},{"$f":"IFERROR(IF(A53,0,IF(LEN('Tablica za gubitak kilograma'!$C56)=0,0,'Tablica za gubitak kilograma'!$C56)),\"\")","v":0}]
[{"$f":"IF((LEN('Tablica za gubitak kilograma'!$C57)=0),TRUE)","v":true},{"$f":"IFERROR(IF(A54,0,IF(LEN('Tablica za gubitak kilograma'!$B57)=0,0,'Tablica za gubitak kilograma'!$B57)),\"\")","v":"00:00:00"},{"$f":"IFERROR(IF(A54,0,IF(LEN('Tablica za gubitak kilograma'!$C57)=0,0,'Tablica za gubitak kilograma'!$C57)),\"\")","v":0}]
[{"$f":"IF((LEN('Tablica za gubitak kilograma'!$C58)=0),TRUE)","v":true},{"$f":"IFERROR(IF(A55,0,IF(LEN('Tablica za gubitak kilograma'!$B58)=0,0,'Tablica za gubitak kilograma'!$B58)),\"\")","v":"00:00:00"},{"$f":"IFERROR(IF(A55,0,IF(LEN('Tablica za gubitak kilograma'!$C58)=0,0,'Tablica za gubitak kilograma'!$C58)),\"\")","v":0}]
[{"$f":"IF((LEN('Tablica za gubitak kilograma'!$C59)=0),TRUE)","v":true},{"$f":"IFERROR(IF(A56,0,IF(LEN('Tablica za gubitak kilograma'!$B59)=0,0,'Tablica za gubitak kilograma'!$B59)),\"\")","v":"00:00:00"},{"$f":"IFERROR(IF(A56,0,IF(LEN('Tablica za gubitak kilograma'!$C59)=0,0,'Tablica za gubitak kilograma'!$C59)),\"\")","v":0}]
[{"$f":"IF((LEN('Tablica za gubitak kilograma'!$C60)=0),TRUE)","v":true},{"$f":"IFERROR(IF(A57,0,IF(LEN('Tablica za gubitak kilograma'!$B60)=0,0,'Tablica za gubitak kilograma'!$B60)),\"\")","v":"00:00:00"},{"$f":"IFERROR(IF(A57,0,IF(LEN('Tablica za gubitak kilograma'!$C60)=0,0,'Tablica za gubitak kilograma'!$C60)),\"\")","v":0}]
[{"$f":"IF((LEN('Tablica za gubitak kilograma'!$C61)=0),TRUE)","v":true},{"$f":"IFERROR(IF(A58,0,IF(LEN('Tablica za gubitak kilograma'!$B61)=0,0,'Tablica za gubitak kilograma'!$B61)),\"\")","v":"00:00:00"},{"$f":"IFERROR(IF(A58,0,IF(LEN('Tablica za gubitak kilograma'!$C61)=0,0,'Tablica za gubitak kilograma'!$C61)),\"\")","v":0}]
[{"$f":"IF((LEN('Tablica za gubitak kilograma'!$C62)=0),TRUE)","v":true},{"$f":"IFERROR(IF(A59,0,IF(LEN('Tablica za gubitak kilograma'!$B62)=0,0,'Tablica za gubitak kilograma'!$B62)),\"\")","v":"00:00:00"},{"$f":"IFERROR(IF(A59,0,IF(LEN('Tablica za gubitak kilograma'!$C62)=0,0,'Tablica za gubitak kilograma'!$C62)),\"\")","v":0}]
[{"$f":"IF((LEN('Tablica za gubitak kilograma'!$C63)=0),TRUE)","v":true},{"$f":"IFERROR(IF(A60,0,IF(LEN('Tablica za gubitak kilograma'!$B63)=0,0,'Tablica za gubitak kilograma'!$B63)),\"\")","v":"00:00:00"},{"$f":"IFERROR(IF(A60,0,IF(LEN('Tablica za gubitak kilograma'!$C63)=0,0,'Tablica za gubitak kilograma'!$C63)),\"\")","v":0}]
[{"$f":"IF((LEN('Tablica za gubitak kilograma'!$C64)=0),TRUE)","v":true},{"$f":"IFERROR(IF(A61,0,IF(LEN('Tablica za gubitak kilograma'!$B64)=0,0,'Tablica za gubitak kilograma'!$B64)),\"\")","v":"00:00:00"},{"$f":"IFERROR(IF(A61,0,IF(LEN('Tablica za gubitak kilograma'!$C64)=0,0,'Tablica za gubitak kilograma'!$C64)),\"\")","v":0}]
[{"$f":"IF((LEN('Tablica za gubitak kilograma'!$C65)=0),TRUE)","v":true},{"$f":"IFERROR(IF(A62,0,IF(LEN('Tablica za gubitak kilograma'!$B65)=0,0,'Tablica za gubitak kilograma'!$B65)),\"\")","v":"00:00:00"},{"$f":"IFERROR(IF(A62,0,IF(LEN('Tablica za gubitak kilograma'!$C65)=0,0,'Tablica za gubitak kilograma'!$C65)),\"\")","v":0}]
[{"$f":"IF((LEN('Tablica za gubitak kilograma'!$C66)=0),TRUE)","v":true},{"$f":"IFERROR(IF(A63,0,IF(LEN('Tablica za gubitak kilograma'!$B66)=0,0,'Tablica za gubitak kilograma'!$B66)),\"\")","v":"00:00:00"},{"$f":"IFERROR(IF(A63,0,IF(LEN('Tablica za gubitak kilograma'!$C66)=0,0,'Tablica za gubitak kilograma'!$C66)),\"\")","v":0}]
[{"$f":"IF((LEN('Tablica za gubitak kilograma'!$C67)=0),TRUE)","v":true},{"$f":"IFERROR(IF(A64,0,IF(LEN('Tablica za gubitak kilograma'!$B67)=0,0,'Tablica za gubitak kilograma'!$B67)),\"\")","v":"00:00:00"},{"$f":"IFERROR(IF(A64,0,IF(LEN('Tablica za gubitak kilograma'!$C67)=0,0,'Tablica za gubitak kilograma'!$C67)),\"\")","v":0}]
[{"$f":"IF((LEN('Tablica za gubitak kilograma'!$C68)=0),TRUE)","v":true},{"$f":"IFERROR(IF(A65,0,IF(LEN('Tablica za gubitak kilograma'!$B68)=0,0,'Tablica za gubitak kilograma'!$B68)),\"\")","v":"00:00:00"},{"$f":"IFERROR(IF(A65,0,IF(LEN('Tablica za gubitak kilograma'!$C68)=0,0,'Tablica za gubitak kilograma'!$C68)),\"\")","v":0}]
[{"$f":"IF((LEN('Tablica za gubitak kilograma'!$C69)=0),TRUE)","v":true},{"$f":"IFERROR(IF(A66,0,IF(LEN('Tablica za gubitak kilograma'!$B69)=0,0,'Tablica za gubitak kilograma'!$B69)),\"\")","v":"00:00:00"},{"$f":"IFERROR(IF(A66,0,IF(LEN('Tablica za gubitak kilograma'!$C69)=0,0,'Tablica za gubitak kilograma'!$C69)),\"\")","v":0}]
[{"$f":"IF((LEN('Tablica za gubitak kilograma'!$C70)=0),TRUE)","v":true},{"$f":"IFERROR(IF(A67,0,IF(LEN('Tablica za gubitak kilograma'!$B70)=0,0,'Tablica za gubitak kilograma'!$B70)),\"\")","v":"00:00:00"},{"$f":"IFERROR(IF(A67,0,IF(LEN('Tablica za gubitak kilograma'!$C70)=0,0,'Tablica za gubitak kilograma'!$C70)),\"\")","v":0}]
[{"$f":"IF((LEN('Tablica za gubitak kilograma'!$C71)=0),TRUE)","v":true},{"$f":"IFERROR(IF(A68,0,IF(LEN('Tablica za gubitak kilograma'!$B71)=0,0,'Tablica za gubitak kilograma'!$B71)),\"\")","v":"00:00:00"},{"$f":"IFERROR(IF(A68,0,IF(LEN('Tablica za gubitak kilograma'!$C71)=0,0,'Tablica za gubitak kilograma'!$C71)),\"\")","v":0}]
[{"$f":"IF((LEN('Tablica za gubitak kilograma'!$C72)=0),TRUE)","v":true},{"$f":"IFERROR(IF(A69,0,IF(LEN('Tablica za gubitak kilograma'!$B72)=0,0,'Tablica za gubitak kilograma'!$B72)),\"\")","v":"00:00:00"},{"$f":"IFERROR(IF(A69,0,IF(LEN('Tablica za gubitak kilograma'!$C72)=0,0,'Tablica za gubitak kilograma'!$C72)),\"\")","v":0}]
[{"$f":"IF((LEN('Tablica za gubitak kilograma'!$C73)=0),TRUE)","v":true},{"$f":"IFERROR(IF(A70,0,IF(LEN('Tablica za gubitak kilograma'!$B73)=0,0,'Tablica za gubitak kilograma'!$B73)),\"\")","v":"00:00:00"},{"$f":"IFERROR(IF(A70,0,IF(LEN('Tablica za gubitak kilograma'!$C73)=0,0,'Tablica za gubitak kilograma'!$C73)),\"\")","v":0}]
[{"$f":"IF((LEN('Tablica za gubitak kilograma'!$C74)=0),TRUE)","v":true},{"$f":"IFERROR(IF(A71,0,IF(LEN('Tablica za gubitak kilograma'!$B74)=0,0,'Tablica za gubitak kilograma'!$B74)),\"\")","v":"00:00:00"},{"$f":"IFERROR(IF(A71,0,IF(LEN('Tablica za gubitak kilograma'!$C74)=0,0,'Tablica za gubitak kilograma'!$C74)),\"\")","v":0}]
[{"$f":"IF((LEN('Tablica za gubitak kilograma'!$C75)=0),TRUE)","v":true},{"$f":"IFERROR(IF(A72,0,IF(LEN('Tablica za gubitak kilograma'!$B75)=0,0,'Tablica za gubitak kilograma'!$B75)),\"\")","v":"00:00:00"},{"$f":"IFERROR(IF(A72,0,IF(LEN('Tablica za gubitak kilograma'!$C75)=0,0,'Tablica za gubitak kilograma'!$C75)),\"\")","v":0}]
[{"$f":"IF((LEN('Tablica za gubitak kilograma'!$C76)=0),TRUE)","v":true},{"$f":"IFERROR(IF(A73,0,IF(LEN('Tablica za gubitak kilograma'!$B76)=0,0,'Tablica za gubitak kilograma'!$B76)),\"\")","v":"00:00:00"},{"$f":"IFERROR(IF(A73,0,IF(LEN('Tablica za gubitak kilograma'!$C76)=0,0,'Tablica za gubitak kilograma'!$C76)),\"\")","v":0}]
[{"$f":"IF((LEN('Tablica za gubitak kilograma'!$C77)=0),TRUE)","v":true},{"$f":"IFERROR(IF(A74,0,IF(LEN('Tablica za gubitak kilograma'!$B77)=0,0,'Tablica za gubitak kilograma'!$B77)),\"\")","v":"00:00:00"},{"$f":"IFERROR(IF(A74,0,IF(LEN('Tablica za gubitak kilograma'!$C77)=0,0,'Tablica za gubitak kilograma'!$C77)),\"\")","v":0}]
[{"$f":"IF((LEN('Tablica za gubitak kilograma'!$C78)=0),TRUE)","v":true},{"$f":"IFERROR(IF(A75,0,IF(LEN('Tablica za gubitak kilograma'!$B78)=0,0,'Tablica za gubitak kilograma'!$B78)),\"\")","v":"00:00:00"},{"$f":"IFERROR(IF(A75,0,IF(LEN('Tablica za gubitak kilograma'!$C78)=0,0,'Tablica za gubitak kilograma'!$C78)),\"\")","v":0}]
[{"$f":"IF((LEN('Tablica za gubitak kilograma'!$C79)=0),TRUE)","v":true},{"$f":"IFERROR(IF(A76,0,IF(LEN('Tablica za gubitak kilograma'!$B79)=0,0,'Tablica za gubitak kilograma'!$B79)),\"\")","v":"00:00:00"},{"$f":"IFERROR(IF(A76,0,IF(LEN('Tablica za gubitak kilograma'!$C79)=0,0,'Tablica za gubitak kilograma'!$C79)),\"\")","v":0}]
[{"$f":"IF((LEN('Tablica za gubitak kilograma'!$C80)=0),TRUE)","v":true},{"$f":"IFERROR(IF(A77,0,IF(LEN('Tablica za gubitak kilograma'!$B80)=0,0,'Tablica za gubitak kilograma'!$B80)),\"\")","v":"00:00:00"},{"$f":"IFERROR(IF(A77,0,IF(LEN('Tablica za gubitak kilograma'!$C80)=0,0,'Tablica za gubitak kilograma'!$C80)),\"\")","v":0}]
[{"$f":"IF((LEN('Tablica za gubitak kilograma'!$C81)=0),TRUE)","v":true},{"$f":"IFERROR(IF(A78,0,IF(LEN('Tablica za gubitak kilograma'!$B81)=0,0,'Tablica za gubitak kilograma'!$B81)),\"\")","v":"00:00:00"},{"$f":"IFERROR(IF(A78,0,IF(LEN('Tablica za gubitak kilograma'!$C81)=0,0,'Tablica za gubitak kilograma'!$C81)),\"\")","v":0}]
[{"$f":"IF((LEN('Tablica za gubitak kilograma'!$C82)=0),TRUE)","v":true},{"$f":"IFERROR(IF(A79,0,IF(LEN('Tablica za gubitak kilograma'!$B82)=0,0,'Tablica za gubitak kilograma'!$B82)),\"\")","v":"00:00:00"},{"$f":"IFERROR(IF(A79,0,IF(LEN('Tablica za gubitak kilograma'!$C82)=0,0,'Tablica za gubitak kilograma'!$C82)),\"\")","v":0}]
[{"$f":"IF((LEN('Tablica za gubitak kilograma'!$C83)=0),TRUE)","v":true},{"$f":"IFERROR(IF(A80,0,IF(LEN('Tablica za gubitak kilograma'!$B83)=0,0,'Tablica za gubitak kilograma'!$B83)),\"\")","v":"00:00:00"},{"$f":"IFERROR(IF(A80,0,IF(LEN('Tablica za gubitak kilograma'!$C83)=0,0,'Tablica za gubitak kilograma'!$C83)),\"\")","v":0}]
[{"$f":"IF((LEN('Tablica za gubitak kilograma'!$C84)=0),TRUE)","v":true},{"$f":"IFERROR(IF(A81,0,IF(LEN('Tablica za gubitak kilograma'!$B84)=0,0,'Tablica za gubitak kilograma'!$B84)),\"\")","v":"00:00:00"},{"$f":"IFERROR(IF(A81,0,IF(LEN('Tablica za gubitak kilograma'!$C84)=0,0,'Tablica za gubitak kilograma'!$C84)),\"\")","v":0}]
[{"$f":"IF((LEN('Tablica za gubitak kilograma'!$C85)=0),TRUE)","v":true},{"$f":"IFERROR(IF(A82,0,IF(LEN('Tablica za gubitak kilograma'!$B85)=0,0,'Tablica za gubitak kilograma'!$B85)),\"\")","v":"00:00:00"},{"$f":"IFERROR(IF(A82,0,IF(LEN('Tablica za gubitak kilograma'!$C85)=0,0,'Tablica za gubitak kilograma'!$C85)),\"\")","v":0}]
[{"$f":"IF((LEN('Tablica za gubitak kilograma'!$C86)=0),TRUE)","v":true},{"$f":"IFERROR(IF(A83,0,IF(LEN('Tablica za gubitak kilograma'!$B86)=0,0,'Tablica za gubitak kilograma'!$B86)),\"\")","v":"00:00:00"},{"$f":"IFERROR(IF(A83,0,IF(LEN('Tablica za gubitak kilograma'!$C86)=0,0,'Tablica za gubitak kilograma'!$C86)),\"\")","v":0}]
[{"$f":"IF((LEN('Tablica za gubitak kilograma'!$C87)=0),TRUE)","v":true},{"$f":"IFERROR(IF(A84,0,IF(LEN('Tablica za gubitak kilograma'!$B87)=0,0,'Tablica za gubitak kilograma'!$B87)),\"\")","v":"00:00:00"},{"$f":"IFERROR(IF(A84,0,IF(LEN('Tablica za gubitak kilograma'!$C87)=0,0,'Tablica za gubitak kilograma'!$C87)),\"\")","v":0}]
[{"$f":"IF((LEN('Tablica za gubitak kilograma'!$C88)=0),TRUE)","v":true},{"$f":"IFERROR(IF(A85,0,IF(LEN('Tablica za gubitak kilograma'!$B88)=0,0,'Tablica za gubitak kilograma'!$B88)),\"\")","v":"00:00:00"},{"$f":"IFERROR(IF(A85,0,IF(LEN('Tablica za gubitak kilograma'!$C88)=0,0,'Tablica za gubitak kilograma'!$C88)),\"\")","v":0}]
[{"$f":"IF((LEN('Tablica za gubitak kilograma'!$C89)=0),TRUE)","v":true},{"$f":"IFERROR(IF(A86,0,IF(LEN('Tablica za gubitak kilograma'!$B89)=0,0,'Tablica za gubitak kilograma'!$B89)),\"\")","v":"00:00:00"},{"$f":"IFERROR(IF(A86,0,IF(LEN('Tablica za gubitak kilograma'!$C89)=0,0,'Tablica za gubitak kilograma'!$C89)),\"\")","v":0}]
[{"$f":"IF((LEN('Tablica za gubitak kilograma'!$C90)=0),TRUE)","v":true},{"$f":"IFERROR(IF(A87,0,IF(LEN('Tablica za gubitak kilograma'!$B90)=0,0,'Tablica za gubitak kilograma'!$B90)),\"\")","v":"00:00:00"},{"$f":"IFERROR(IF(A87,0,IF(LEN('Tablica za gubitak kilograma'!$C90)=0,0,'Tablica za gubitak kilograma'!$C90)),\"\")","v":0}]
[{"$f":"IF((LEN('Tablica za gubitak kilograma'!$C91)=0),TRUE)","v":true},{"$f":"IFERROR(IF(A88,0,IF(LEN('Tablica za gubitak kilograma'!$B91)=0,0,'Tablica za gubitak kilograma'!$B91)),\"\")","v":"00:00:00"},{"$f":"IFERROR(IF(A88,0,IF(LEN('Tablica za gubitak kilograma'!$C91)=0,0,'Tablica za gubitak kilograma'!$C91)),\"\")","v":0}]
[{"$f":"IF((LEN('Tablica za gubitak kilograma'!$C92)=0),TRUE)","v":true},{"$f":"IFERROR(IF(A89,0,IF(LEN('Tablica za gubitak kilograma'!$B92)=0,0,'Tablica za gubitak kilograma'!$B92)),\"\")","v":"00:00:00"},{"$f":"IFERROR(IF(A89,0,IF(LEN('Tablica za gubitak kilograma'!$C92)=0,0,'Tablica za gubitak kilograma'!$C92)),\"\")","v":0}]
[{"$f":"IF((LEN('Tablica za gubitak kilograma'!$C93)=0),TRUE)","v":true},{"$f":"IFERROR(IF(A90,0,IF(LEN('Tablica za gubitak kilograma'!$B93)=0,0,'Tablica za gubitak kilograma'!$B93)),\"\")","v":"00:00:00"},{"$f":"IFERROR(IF(A90,0,IF(LEN('Tablica za gubitak kilograma'!$C93)=0,0,'Tablica za gubitak kilograma'!$C93)),\"\")","v":0}]
[{"$f":"IF((LEN('Tablica za gubitak kilograma'!$C94)=0),TRUE)","v":true},{"$f":"IFERROR(IF(A91,0,IF(LEN('Tablica za gubitak kilograma'!$B94)=0,0,'Tablica za gubitak kilograma'!$B94)),\"\")","v":"00:00:00"},{"$f":"IFERROR(IF(A91,0,IF(LEN('Tablica za gubitak kilograma'!$C94)=0,0,'Tablica za gubitak kilograma'!$C94)),\"\")","v":0}]
[{"$f":"IF((LEN('Tablica za gubitak kilograma'!$C95)=0),TRUE)","v":true},{"$f":"IFERROR(IF(A92,0,IF(LEN('Tablica za gubitak kilograma'!$B95)=0,0,'Tablica za gubitak kilograma'!$B95)),\"\")","v":"00:00:00"},{"$f":"IFERROR(IF(A92,0,IF(LEN('Tablica za gubitak kilograma'!$C95)=0,0,'Tablica za gubitak kilograma'!$C95)),\"\")","v":0}]
[{"$f":"IF((LEN('Tablica za gubitak kilograma'!$C96)=0),TRUE)","v":true},{"$f":"IFERROR(IF(A93,0,IF(LEN('Tablica za gubitak kilograma'!$B96)=0,0,'Tablica za gubitak kilograma'!$B96)),\"\")","v":"00:00:00"},{"$f":"IFERROR(IF(A93,0,IF(LEN('Tablica za gubitak kilograma'!$C96)=0,0,'Tablica za gubitak kilograma'!$C96)),\"\")","v":0}]
[{"$f":"IF((LEN('Tablica za gubitak kilograma'!$C97)=0),TRUE)","v":true},{"$f":"IFERROR(IF(A94,0,IF(LEN('Tablica za gubitak kilograma'!$B97)=0,0,'Tablica za gubitak kilograma'!$B97)),\"\")","v":"00:00:00"},{"$f":"IFERROR(IF(A94,0,IF(LEN('Tablica za gubitak kilograma'!$C97)=0,0,'Tablica za gubitak kilograma'!$C97)),\"\")","v":0}]
[{"$f":"IF((LEN('Tablica za gubitak kilograma'!$C98)=0),TRUE)","v":true},{"$f":"IFERROR(IF(A95,0,IF(LEN('Tablica za gubitak kilograma'!$B98)=0,0,'Tablica za gubitak kilograma'!$B98)),\"\")","v":"00:00:00"},{"$f":"IFERROR(IF(A95,0,IF(LEN('Tablica za gubitak kilograma'!$C98)=0,0,'Tablica za gubitak kilograma'!$C98)),\"\")","v":0}]
[{"$f":"IF((LEN('Tablica za gubitak kilograma'!$C99)=0),TRUE)","v":true},{"$f":"IFERROR(IF(A96,0,IF(LEN('Tablica za gubitak kilograma'!$B99)=0,0,'Tablica za gubitak kilograma'!$B99)),\"\")","v":"00:00:00"},{"$f":"IFERROR(IF(A96,0,IF(LEN('Tablica za gubitak kilograma'!$C99)=0,0,'Tablica za gubitak kilograma'!$C99)),\"\")","v":0}]
[{"$f":"IF((LEN('Tablica za gubitak kilograma'!$C100)=0),TRUE)","v":true},{"$f":"IFERROR(IF(A97,0,IF(LEN('Tablica za gubitak kilograma'!$B100)=0,0,'Tablica za gubitak kilograma'!$B100)),\"\")","v":"00:00:00"},{"$f":"IFERROR(IF(A97,0,IF(LEN('Tablica za gubitak kilograma'!$C100)=0,0,'Tablica za gubitak kilograma'!$C100)),\"\")","v":0}]
[{"$f":"IF((LEN('Tablica za gubitak kilograma'!$C101)=0),TRUE)","v":true},{"$f":"IFERROR(IF(A98,0,IF(LEN('Tablica za gubitak kilograma'!$B101)=0,0,'Tablica za gubitak kilograma'!$B101)),\"\")","v":"00:00:00"},{"$f":"IFERROR(IF(A98,0,IF(LEN('Tablica za gubitak kilograma'!$C101)=0,0,'Tablica za gubitak kilograma'!$C101)),\"\")","v":0}]
[{"$f":"IF((LEN('Tablica za gubitak kilograma'!$C102)=0),TRUE)","v":true},{"$f":"IFERROR(IF(A99,0,IF(LEN('Tablica za gubitak kilograma'!$B102)=0,0,'Tablica za gubitak kilograma'!$B102)),\"\")","v":"00:00:00"},{"$f":"IFERROR(IF(A99,0,IF(LEN('Tablica za gubitak kilograma'!$C102)=0,0,'Tablica za gubitak kilograma'!$C102)),\"\")","v":0}]
[{"$f":"IF((LEN('Tablica za gubitak kilograma'!$C103)=0),TRUE)","v":true},{"$f":"IFERROR(IF(A100,0,IF(LEN('Tablica za gubitak kilograma'!$B103)=0,0,'Tablica za gubitak kilograma'!$B103)),\"\")","v":"00:00:00"},{"$f":"IFERROR(IF(A100,0,IF(LEN('Tablica za gubitak kilograma'!$C103)=0,0,'Tablica za gubitak kilograma'!$C103)),\"\")","v":0}]
[{"$f":"IF((LEN('Tablica za gubitak kilograma'!$C104)=0),TRUE)","v":true},{"$f":"IFERROR(IF(A101,0,IF(LEN('Tablica za gubitak kilograma'!$B104)=0,0,'Tablica za gubitak kilograma'!$B104)),\"\")","v":"00:00:00"},{"$f":"IFERROR(IF(A101,0,IF(LEN('Tablica za gubitak kilograma'!$C104)=0,0,'Tablica za gubitak kilograma'!$C104)),\"\")","v":0}]
[{"$f":"IF((LEN('Tablica za gubitak kilograma'!$C105)=0),TRUE)","v":true},{"$f":"IFERROR(IF(A102,0,IF(LEN('Tablica za gubitak kilograma'!$B105)=0,0,'Tablica za gubitak kilograma'!$B105)),\"\")","v":"00:00:00"},{"$f":"IFERROR(IF(A102,0,IF(LEN('Tablica za gubitak kilograma'!$C105)=0,0,'Tablica za gubitak kilograma'!$C105)),\"\")","v":0}]
[{"$f":"IF((LEN('Tablica za gubitak kilograma'!$C106)=0),TRUE)","v":true},{"$f":"IFERROR(IF(A103,0,IF(LEN('Tablica za gubitak kilograma'!$B106)=0,0,'Tablica za gubitak kilograma'!$B106)),\"\")","v":"00:00:00"},{"$f":"IFERROR(IF(A103,0,IF(LEN('Tablica za gubitak kilograma'!$C106)=0,0,'Tablica za gubitak kilograma'!$C106)),\"\")","v":0}]
[{"$f":"IF((LEN('Tablica za gubitak kilograma'!$C107)=0),TRUE)","v":true},{"$f":"IFERROR(IF(A104,0,IF(LEN('Tablica za gubitak kilograma'!$B107)=0,0,'Tablica za gubitak kilograma'!$B107)),\"\")","v":"00:00:00"},{"$f":"IFERROR(IF(A104,0,IF(LEN('Tablica za gubitak kilograma'!$C107)=0,0,'Tablica za gubitak kilograma'!$C107)),\"\")","v":0}]
[{"$f":"IF((LEN('Tablica za gubitak kilograma'!$C108)=0),TRUE)","v":true},{"$f":"IFERROR(IF(A105,0,IF(LEN('Tablica za gubitak kilograma'!$B108)=0,0,'Tablica za gubitak kilograma'!$B108)),\"\")","v":"00:00:00"},{"$f":"IFERROR(IF(A105,0,IF(LEN('Tablica za gubitak kilograma'!$C108)=0,0,'Tablica za gubitak kilograma'!$C108)),\"\")","v":0}]
[{"$f":"IF((LEN('Tablica za gubitak kilograma'!$C109)=0),TRUE)","v":true},{"$f":"IFERROR(IF(A106,0,IF(LEN('Tablica za gubitak kilograma'!$B109)=0,0,'Tablica za gubitak kilograma'!$B109)),\"\")","v":"00:00:00"},{"$f":"IFERROR(IF(A106,0,IF(LEN('Tablica za gubitak kilograma'!$C109)=0,0,'Tablica za gubitak kilograma'!$C109)),\"\")","v":0}]
[{"$f":"IF((LEN('Tablica za gubitak kilograma'!$C110)=0),TRUE)","v":true},{"$f":"IFERROR(IF(A107,0,IF(LEN('Tablica za gubitak kilograma'!$B110)=0,0,'Tablica za gubitak kilograma'!$B110)),\"\")","v":"00:00:00"},{"$f":"IFERROR(IF(A107,0,IF(LEN('Tablica za gubitak kilograma'!$C110)=0,0,'Tablica za gubitak kilograma'!$C110)),\"\")","v":0}]